{"text_format":"3","workbook":"xlsx","n_sheets":18,"sheets":["HOME","Nights -Kms","Bush","Bushwalking Grading","MTB","Flatwater","Alpine","Mountaineering","Abseil","Canyon","Cave","Climb","WhiteWater","Seakayak","Aquatics","Challenge Ropes","Adventure-based Learning","PD"],"not_rendered":{"images":1},"read":"whole","date_system":"1900"}

{"sheet":"HOME","index":0,"n_rows":13,"n_cols":16,"rows_kept":13,"merged":[[0,0,0,14],[1,0,1,14],[2,0,2,14],[3,0,3,14],[4,0,4,14]]}
["OUTDOOR ACTIVITIES LOGBOOK"]
["Your Name here"]
[]
["In the tabs below you will find a record of my experience in a number of outdoor education recreation activities.  These logged experiences vary from personal participation; part of my own education and training including work placement as assistant leader; group leading; to teaching/training outdoor leaders; and finally any professional development both formal and informal.",{"$nulls":14},"Entries can be double entered or even triple entered"]
["Summary of Activity Sheets (auto-filled)",{"$nulls":14},"For Examle"]
["DAYS","Bushwalk Exped","Alpine     XC Ski    ","Mountain/ Polar","Abseil","Canyon","Cave","Climb","Ropes","Canoe Flatwater","Canoe WhiteWater","Sea Kayak","MTB","Aquatics","ABL","A canyon that has a substantial bushwalk to reacjh it (say 2km)"]
["Total Days",{"$f":"SUM(B8:B11)","v":2},1,0,{"$f":"SUM(E8:E11)","v":0},{"$f":"SUM(F8:F11)","v":0},{"$f":"SUM(G8:G11)","v":0},{"$f":"SUM(H8:H11)","v":0},{"$f":"SUM(I8:I11)","v":0},2,0,0,1,0,0,"and has , say 4 major abseils of 30m each can be logged as such."]
["Personal",{"$f":"Bush!J6","v":1},{"$f":"Alpine!H6","v":1},{"$f":"Mountaineering!I6","v":0},{"$f":"Abseil!G6","v":0},{"$f":"Canyon!I6","v":0},{"$f":"Cave!J6","v":0},{"$f":"Climb!J6","v":0},{"$f":"'Challenge Ropes'!E6","v":0},{"$f":"Flatwater!I6","v":0},{"$f":"WhiteWater!F6","v":0},{"$f":"Seakayak!I6","v":0},{"$f":"MTB!I6","v":1},{"$f":"Aquatics!F6","v":0},"na","Bushwalking Section"]
["Edu/training",{"$f":"Bush!K6","v":0},{"$f":"Alpine!I6","v":0},{"$f":"Mountaineering!J6","v":0},{"$f":"Abseil!H6","v":0},{"$f":"Canyon!J6","v":0},{"$f":"Cave!K6","v":0},{"$f":"Climb!K6","v":0},{"$f":"'Challenge Ropes'!F6","v":0},{"$f":"Flatwater!J6","v":2},{"$f":"WhiteWater!G6","v":0},{"$f":"Seakayak!J6","v":0},{"$f":"MTB!J6","v":0},{"$f":"Aquatics!G6","v":0},{"$f":"'Adventure-based Learning'!F6","v":0},"Log a bushwalk of 2 km"]
["Leading",{"$f":"Bush!L6","v":1},{"$f":"Alpine!J6","v":0},{"$f":"Mountaineering!K6","v":0},{"$f":"Abseil!I6","v":0},{"$f":"Canyon!K6","v":0},{"$f":"Cave!L6","v":0},{"$f":"Climb!L6","v":0},{"$f":"'Challenge Ropes'!G6","v":0},{"$f":"Flatwater!K6","v":0},{"$f":"WhiteWater!H6","v":0},{"$f":"Seakayak!K6","v":0},{"$f":"MTB!K6","v":0},{"$f":"Aquatics!H6","v":0},{"$f":"'Adventure-based Learning'!G6","v":0},"Abseiling Section"]
["Teaching",{"$f":"Bush!M6","v":0},{"$f":"Alpine!K6","v":0},{"$f":"Mountaineering!L6","v":0},{"$f":"Abseil!J6","v":0},{"$f":"Canyon!L6","v":0},{"$f":"Cave!M6","v":0},{"$f":"Climb!M6","v":0},{"$f":"'Challenge Ropes'!H6","v":0},{"$f":"Flatwater!L6","v":0},{"$f":"WhiteWater!I6","v":0},{"$f":"Seakayak!L6","v":0},{"$f":"MTB!L6","v":0},{"$f":"Aquatics!I6","v":0},{"$f":"'Adventure-based Learning'!H6","v":0},"Log 4 abseils of 30m each"]
[{"$nulls":15},"Canyon Section"]
[{"$nulls":15},"Log the Canyon itself"]

{"sheet":"Nights -Kms","index":1,"n_rows":12,"n_cols":15,"rows_kept":12,"merged":[[0,0,0,5],[0,7,0,14],[1,2,1,3],[1,4,1,5],[1,7,1,12]]}
["Nights",{"$nulls":6},"Kilometres on any Journey"]
["Date","Venue","Type of Activity",null,"Nights camped",null,null,"Kms  travelled",{"$nulls":5},"Vertify","Notes"]
["dd/mm/year","Camp Location","Purpose of Camp","Name of Camp","Nights Out","Scout Nights camped out",null,"Description Kms Travelled","Scout Kms walked","Kms Walked","Kms ski","Kms Paddled","Kms Total","Who can verify authenticity of this entry                                               title/ name/ email/ phone                                           (if applicable)    ","Additional comments regarding this activity\nNote any non-routine, complex, problem solving, or incident managment tasks performed"]
["Totals>",{"$nulls":3},{"$f":"SUM(E5:E126)","v":23},{"$f":"SUM(F5:F124)","v":0},null,null,{"$f":"SUM(I5:I133)","v":10},{"$f":"Bush!D6","v":23},{"$f":"Alpine!D6","v":5},{"$f":"Flatwater!F6+Seakayak!F6","v":20},{"$f":"SUM(J4:L4)","v":48}]
["2019-07-26","Greenpatch","Holiday",null,2,null,null,"Lake Alexandria ",5,{"$nulls":4},"Geoff Hawke"]
["2017-06-09","Greenpatch","Holiday",null,3,null,null,"Jott Hike 2018",5,{"$nulls":4},"Josh Reynolds"]
["7-9 Oct 2017","Greenpatch","Holiday",null,3]
["2017-12-30","Greenpatch","Holiday",null,7]
["2018-09-28","Murramarang National Park","Holiday",null,5]
["2019-06-03","Mittagong Scout Hall","Waterwise camp",null,2]
["2017-04-29","Ingleside Scout Camp ","Little Wolf Camp ",null,1]
[null,"Wombeyan Caves"]

{"sheet":"Bush","index":2,"n_rows":8,"n_cols":24,"rows_kept":8,"merged":[[0,0,0,16],[0,18,5,22],[0,23,5,27],[1,1,1,4],[1,5,1,8],[1,9,1,14],[2,1,2,4],[2,5,2,8],[2,9,2,14],[3,9,3,12]]}
["BUSHWALKING /  EXPEDITION",{"$nulls":17},"Note:  I have done significant walking over my life including winter hill walking in Scotland.  During the period 2002 - 2004 I was living in Scotland and completed a number of challenging walks.  Including but not limited to:Mallaig to inverness (Coast to Coast trek across Scotland with 3 other members in the party.  We stayed in Bothy accommodation & many parts of the track were unmarked.  Weather was challenging with very high winds. Navigation was challenging with one segment of the walk completed in darkness (exit off the Munro into the Cluny Inn was dangerous - cliffs) and required accurate compass & pacing work.  In 2003 I completed a winter skills course with Tiso that covered:\n– Two full days of practical instruction in the mountains\n- Navigation skills & navigating in white our conditions\n– Choice and use of equipment for the winter environment\n– Movement skills on snow\n– Use of the ice axe (including ice axe arrest)\n– How to fit and use crampons – when to put them on and take them off\n– Emergency snow shelters\n",{"$nulls":4},"Munros climbed include (I have some photographic evidence but no log book for these walks):\n- An Caisteal & Beinn a Chroin\n- Beinn Chabhair\n- Ben Cruachan + Stob Biamh - traverse and circuit\n- Beinn Dorian\n- Beinne Ime + Beinne Narmain - traverse circuit (summer, low viz on summit and ridge)\n- Ben Kilbreck - very steep ascent and descent onto ridge untracked through heather (summer, clear)\n- Ben Lomond - walk up (summer, clear)\n- Ben More and Stob Binnein - winter, high winds.  Retreat near top of Ben More once visibility dropped to 0 in spindrift as one member lost gloves.\n- Ben More Assynt & Conival (very windy & difficult conditions)\n- Ben Vane - up and down steep + scree (summer, clear)\n- Ben Vorlich (Arochar) - up and down\n- Ben Vorlich (Loch Earn) + Stuc a Chorin - traverse and circuit\nAttempted Cuillen Ridge (but had to abandon the walk due to weather conditions)"]
["Qualification","Most applicable qualification/ Unit I hold for this activity:",{"$nulls":13},"Date obtained:"]
["Experience","The most applicable experience I have in this activity:",{"$nulls":7},"See table below"]
["Date","Area","Type of Activity",{"$nulls":5},"Conditions encountered","MY ROLE  - enter amount of days",{"$nulls":3},"Client Description","Organisation/Business","Vertify","Notes"]
["dd/mm/year","location of walk","day/ overnight    nav exercise       on/off track      ","Distance Kms","Number in Party","Grade","Number of Nights","Number of Days","       \ntype of terrain                                    weather conditions","Personal recreation","Part of my own Education or training","Leading/ Guiding groups","Teaching/ Instructing leaders","ability                                 age range                         how many                        (if applicable) ","Who I conducting activity for                                                 (if applicable)","Who can verify authenticity of this entry                                               title/ name/ email/ phone                                           (if applicable)    ","Additional comments regarding this activity\nNote any non-routine, complex, problem solving, or incident management tasks performed"]
["Totals>",null,null,{"$f":"SUM(D7:D34)","v":23},{"$f":"SUM(E7:E34)","v":7},{"$f":"AVERAGE(F7:F34)","v":{"v":4,"d":"4.0"}},{"$f":"SUM(G7:G34)","v":1},{"$f":"SUM(H7:H34)","v":3},null,{"$f":"SUM(J7:J31)","v":1},{"$f":"SUM(K7:K31)","v":0},{"$f":"SUM(L7:L31)","v":1},{"$f":"SUM(M7:M31)","v":0}]
["2020-06-06","Nattai",null,16,3,4,1,2,"Heavily burnt",null,null,1,{"$nulls":3},"Kenton Jurgs","Wangaderry Road to Bonnum Pic and return.   Combination of walking along tracks and across rocky domes in sandy soil.   Heavily burned though regrowth is coming.   Route marked with pink tape and cairns in places and the odd Sloss Blue route marker is evident.   Some scrambling required and some exposure.  Rope would aid certainty.   Class 4 and 5.  With Fred and Kenton. Kenton conducting assessment for Intermediate Navigation"]
["2020-07-04","Crackenback",null,7,4,4,0,1,"Very icy",1,{"$nulls":5},"Kenton Jurgs","Walk along the Thredbo river along single track mountain bike tracks.   Tracks icy with resdiual snow.    Class 4 with Alex, Kenton and Freddie."]

{"sheet":"Bushwalking Grading","index":3,"n_rows":7,"n_cols":6,"rows_kept":7}
[null,"Grade 1","Grade 2","Grade 3","Grade 4","Grade 5"]
["Distance","Less than 5km.","Less than 10km.","Less than 20km.","May be greater than 20km. Distance does not influence grading.","May be greater than 20km. Distance does not influence grading."]
["Gradient","Suitable for a person in a wheelchair.","Generally no steeper than 1:10","May exceed 1:10","May have arduous climbs and steep sections. May include long steep sections exceeding 1:10.","May have arduous climbs and steep sections. May include long steep sections exceeding 1:10."]
["Quality of path","Broad, hard surfaced track of path suitable for wheelchair use.","Generally a modified or hardened surface.","Formed earthen track, few obstacles. Generally a modified surface, sections may be hardened.","Generally distinct without major modification to the ground. Encounters with fallen debris and other obstacles are likely. Walkers may encounter natural obstacles (e.g. tides).","No modification of the natural environment"]
["Quality of markings","Track head signage & route markers at intersections.","Track head signage & route markers at intersections.","Track head signage & route markers at intersections and where track is indistinct.","Track head signage and route markers.","Signage is generally not provided"]
["Experience required","Users need no pervious experience and are expected to exercise normal care regarding their personal safety.","Users need no pervious experience and are expected to exercise normal care regarding their personal safety. Suitable for most ages and fitness levels.","Users need no bushwalking experience and a minimum level of specialised skills. Users may encounter natural hazards such as steep slopes, unstable surfaces and minor water crossings. Responsible for their own safety.","Users require a moderate level of specialised skills such as navigation skills. Users may require maps and navigation equipment to successfully complete the track. Users need to be self-reliant, particularly in regard to emergency first aid and possible weather hazards.","Users require previous experience in the outdoors and a high level of specialised skills such as navigation skills. Users will generally require a map and navigation equipment to complete the track. Users need to be self-reliant, particularly in regard to emergency first aid and possible weather hazards."]
["Steps","Steps with ramp access.","Minimal use of steps.","Steps may be common.","Steps do not influence grading.","Steps do not influence grading."]

{"sheet":"MTB","index":4,"n_rows":7,"n_cols":16,"rows_kept":7,"merged":[[0,0,0,15],[1,2,1,7],[1,8,1,13],[2,2,2,7],[2,8,2,15],[3,8,3,11]]}
["MT BIKING"]
["Qualification",null,"Most applicable qualification/ Unit I hold for this activity:",{"$nulls":11},"Date obtained:"]
["Experience",null,"The most applicable experience I have in this activity:",{"$nulls":5},"See table below"]
["Date",null,"Venue","Type of Activity",{"$nulls":3},"Conditions encountered","MY ROLE  - enter amount of days",{"$nulls":3},"Client Description","Organisation/Business","Vertify","Notes"]
["dd/mm/year",null,"location         Trail name?","Trail   grade   double track   single track","Distance Kms","Number in Party","Grade","type of terrain/                    level of difficulty                 weather conditions","Personal recreation","Part of my own Education or training","Leading/ Guiding groups","Teaching/ Instructing leaders","ability                                 age range                         how many                        (if applicable) ","Who I conducting activity for                                                 (if applicable)","Who can verify authenticity of this entry                                               title/ name/ email/ phone                                           (if applicable)    ","Additional comments regarding this activity\nNote any non-routine, complex, problem solving, or incident managment tasks performed"]
["Totals>",{"$nulls":3},{"$f":"SUM(E7:E104)","v":18.88},{"$f":"SUM(F7:F104)","v":1},null,null,{"$f":"SUM(I7:I800)","v":1},{"$f":"SUM(J7:J800)","v":0},{"$f":"SUM(K7:K800)","v":0},{"$f":"SUM(L7:L800)","v":0}]
["2019-04-27T14:32:19","SK","cycling","Bowral Cycling",18.88,1,"Medium","Good",1,{"$nulls":5},"Garmin Connect"]

{"sheet":"Flatwater","index":5,"n_rows":7,"n_cols":16,"rows_kept":7,"merged":[[0,0,0,15],[1,1,1,3],[1,8,1,13],[2,1,2,3],[2,8,2,15],[3,4,3,7],[3,8,3,11]]}
["FLATWATER ACTIVITIES"]
["Qualification","Most applicable qualification/ Unit I hold for this activity:",{"$nulls":12},"Date obtained:"]
["Experience","The most applicable experience I have in this activity:",{"$nulls":6},"See table below"]
["Date","Venue","Type of Activity","Conditions encountered","Trip Details",{"$nulls":3},"MY ROLE  - enter amount of days",{"$nulls":3},"Client Description","Organisation/Business","Vertify","Notes"]
["dd/mm/year","name and location of river /lake","Canoe, Kayak, SOT, Raft, Aquatic Rescue","Weather  wind water levels","Trip Type","Kms Paddled","Number in Party","Grade","Personal recreation","Part of my own Education or training","Leading/ Guiding groups","Teaching/ Instructing leaders","ability                                 age range                         how many                        (if applicable) ","Who I conducting activity for                                                 (if applicable)","Who can verify authenticity of this entry                                               title/ name/ email/ phone                                           (if applicable)    ","Additional comments regarding this activity\nNote any non-routine, complex, problem solving, or incident managment tasks performed"]
["Totals>",{"$nulls":4},{"$f":"SUM(F7:F78)","v":20},{"$f":"SUM(G7:G78)","v":19},null,{"$f":"SUM(I7:I57)","v":0},{"$f":"SUM(J7:J57)","v":2},{"$f":"SUM(K7:K57)","v":0},0]
["2019-10-26","Tallowa Dam","Canoe","Fine, 18def, 50KM/h w winds ","Overnight",20,19,null,null,2,{"$nulls":4},"Glenn Austin","Hume Region Canoe Journey.  Was Tallowa to Fossikers but wind drove a replan to Bundanoon Ck"]

{"sheet":"Alpine","index":6,"n_rows":7,"n_cols":15,"rows_kept":7,"merged":[[0,0,0,14],[1,1,1,6],[1,7,1,12],[2,1,2,6],[2,7,2,14],[3,3,3,5],[3,7,3,10]]}
["ALPINE"]
["Qualification","Most applicable qualification/ Unit I hold for this activity:",{"$nulls":11},"Date obtained:"," "]
["Experience","The most applicable experience I have in this activity:",{"$nulls":5},"See table below"]
["Date","Venue","Type of Activity","Trip Details",null,null,"Conditions encountered","MY ROLE  - enter amount of days",{"$nulls":3},"Client Description","Organisation/Business","Vertify","Notes"]
["dd/mm/year","location of walk","day/ overnight skitour,  snowshoe tour,   alpine trek","Distance Kms","Number in Party","Grade","snow condition,         terrain and weather","Personal recreation","Part of my own Education or training","Leading/ Guiding groups","Teaching/ Instructing leaders","ability                                 age range                         how many                        (if applicable) ","Who I conducting activity for                                                 (if applicable)","Who can verify authenticity of this entry                                               title/ name/ email/ phone                                           (if applicable)    ","Additional comments regarding this activity\nNote any non-routine, complex, problem solving, or incident managment tasks performed"]
["Totals>",null,null,{"$f":"SUM(D7:D111)","v":5},{"$f":"SUM(E7:E111)","v":4},null,null,{"$f":"SUM(H7:H43)","v":1},{"$f":"SUM(I7:I43)","v":0},{"$f":"SUM(J7:J43)","v":0},{"$f":"SUM(K7:K43)","v":0}]
["10-14 Jul 2019","Downhill Skiing","day/ overnight skitour,  snowshoe tour,   alpine trek",5,4,"Intermediate","Snow ",1,{"$nulls":5},"Perisher Dashboard"]

{"sheet":"Mountaineering","index":7,"n_rows":6,"n_cols":16,"rows_kept":6,"merged":[[0,0,0,15],[1,1,1,7],[1,8,1,13],[2,1,2,7],[2,8,2,15],[3,4,3,6],[3,8,3,11]]}
["MOUNTAINEERING / POLAR"]
["Qualification","Most applicable qualification/ Unit I hold for this activity:",{"$nulls":12},"Date obtained:"," "]
["Experience","The most applicable experience I have in this activity:",{"$nulls":6},"See table below"]
["Date","Venue",null,"Type of Activity","Trip Details",null,null,"Conditions encountered","MY ROLE  - enter amount of days",{"$nulls":3},"Client Description","Organisation/Business","Vertify","Notes"]
["dd/mm/year","Countrey and Mountain Range","Mountain and Route","Type or style of climbing","Vertical meters","Number in Party","Grade","snow condition,         terrain and weather","Personal recreation","Part of my own Education or training","Leading/ Guiding groups","Teaching/ Instructing leaders","ability                                 age range                         how many                        (if applicable) ","Who I conducting activity for                                                 (if applicable)","Who can verify authenticity of this entry                                               title/ name/ email/ phone                                           (if applicable)    ","Additional comments regarding this activity\nNote any non-routine, complex, problem solving, or incident managment tasks performed"]
["Totals>",{"$nulls":3},{"$f":"SUM(E7:E81)","v":0},{"$f":"SUM(F7:F81)","v":0},null,null,{"$f":"SUM(I7:I35)","v":0},{"$f":"SUM(J7:J35)","v":0},{"$f":"SUM(K7:K35)","v":0},{"$f":"SUM(L7:L35)","v":0}]

{"sheet":"Abseil","index":8,"n_rows":6,"n_cols":14,"rows_kept":6,"merged":[[0,0,0,13],[1,1,1,5],[1,6,1,11],[2,1,2,5],[2,6,2,11],[2,12,2,13],[3,3,3,5],[3,6,3,9]]}
["ABSEILING"]
["Qualification","Most applicable qualification/ Unit I hold for this activity:",{"$nulls":10},"Date obtained:"]
["Experience","The most applicable experience I have in this activity:",{"$nulls":4},"See table below                                                                                              "]
["Date","Venue","Type of Abseiling","Trip Details",null,null,"MY ROLE  - enter amount of days",{"$nulls":3},"Client Description","Organisation/Business","Vertify","Notes"]
["dd/mm/year","location of crag","Single Pitch    \nMulti Pitch\nNatural \nArtificial Wall                           ","Metres","Number in Party","Grade","Personal recreation","Part of my own Education or training","Leading/ Guiding groups","Teaching/ Instructing leaders","ability                                 age range                         how many                        (if applicable) ","Who I conducting activity for                                                 (if applicable)","Who can verify authenticity of this entry                                               title/ name/ email/ phone                                           (if applicable)    ","Additional comments regarding this activity\nNote any non-routine, complex, problem solving, or incident managment tasks performed"]
["Totals>",{"$nulls":3},{"$f":"SUM(E7:E84)","v":0},null,{"$f":"SUM(G7:G63)","v":0},{"$f":"SUM(H7:H63)","v":0},{"$f":"SUM(I7:I63)","v":0},{"$f":"SUM(J7:J63)","v":0}]

{"sheet":"Canyon","index":9,"n_rows":6,"n_cols":16,"rows_kept":6,"merged":[[0,0,0,15],[1,1,1,7],[1,8,1,13],[2,1,2,7],[2,8,2,15],[3,2,3,3],[3,4,3,6],[3,8,3,11]]}
["CANYON"]
["Qualification","Most applicable qualification/ Unit I hold for this activity:",{"$nulls":12},"Date obtained:"]
["Experience","The most applicable experience I have in this activity:",{"$nulls":6},"See table below"]
["Date","Venue","Type of Activity",null,"Trip Details",null,null,"Conditions encountered","MY ROLE  - enter amount of days",{"$nulls":3},"Client Description","Organisation/Business","Vertify","Notes"]
["dd/mm/year","location/ Name of Canyon","Horizontal    single pitch     multi-pitch    ","Wet or Dry","Vertical Metres","Number in Party","Grade","Weather Conditions Water Level.","Personal recreation","Part of my own Education or training","Leading/ Guiding groups","Teaching/ Instructing leaders","ability                                 age range                         how many                        (if applicable) ","Who I conducting activity for                                                 (if applicable)","Who can verify authenticity of this entry                                               title/ name/ email/ phone                                           (if applicable)    ","Additional comments regarding this activity\nNote any non-routine, complex, problem solving, or incident managment tasks performed"]
["Totals>",{"$nulls":3},{"$f":"SUM(E7:E78)","v":0},{"$f":"SUM(F7:F78)","v":0},null,null,{"$f":"SUM(I7:I59)","v":0},{"$f":"SUM(J7:J59)","v":0},{"$f":"SUM(K7:K59)","v":0},{"$f":"SUM(L7:L59)","v":0}]

{"sheet":"Cave","index":10,"n_rows":6,"n_cols":17,"rows_kept":6,"merged":[[0,0,0,16],[1,1,1,4],[1,9,1,14],[2,1,2,4],[2,9,2,16],[3,5,3,8],[3,9,3,12]]}
["CAVING"]
["Qualification","Most applicable qualification/ Unit I hold for this activity:",{"$nulls":13},"Date obtained:"]
["Experience","The most applicable experience I have in this activity:",{"$nulls":7},"See table below"]
["Date","Venue","Venue","Type of Activity","Conditions encountered","Trip Details",{"$nulls":3},"MY ROLE  - enter amount of days",{"$nulls":3},"Client Description","Organisation/Business","Vertify","Notes"]
["dd/mm/year","location","Name of cave/s","Horizontal    single pitch     multi-pitch    ","conditions inside the cave","Activity Hours","Vertical Metres","Number in Party","Grade","Personal recreation","Part of my own Education or training","Leading/ Guiding groups","Teaching/ Instructing leaders","ability                                 age range                         how many                        (if applicable) ","Who I conducting activity for                                                 (if applicable)","Who can verify authenticity of this entry                                               title/ name/ email/ phone                                           (if applicable)    ","Additional comments regarding this activity\nNote any non-routine, complex, problem solving, or incident managment tasks performed"]
["Totals>",{"$nulls":4},{"$f":"SUM(F7:F42)","v":0},{"$f":"SUM(G7:G68)","v":0},{"$f":"SUM(H7:H68)","v":0},null,{"$f":"SUM(J7:J72)","v":0},{"$f":"SUM(K7:K72)","v":0},{"$f":"SUM(L7:L72)","v":0},{"$f":"SUM(M7:M72)","v":0}]

{"sheet":"Climb","index":11,"n_rows":6,"n_cols":17,"rows_kept":6,"merged":[[0,0,0,16],[1,1,1,6],[1,9,1,14],[2,1,2,6],[2,9,2,14],[2,15,2,16],[3,1,3,2],[3,4,3,8],[3,9,3,12]]}
["CLIMBING"]
["Qualification","Most applicable qualification/ Unit I hold for this activity:",{"$nulls":13},"Date obtained:"]
["Experience","The most applicable experience I have in this activity:",{"$nulls":7},"See table below                                                                                                    Full climbing log on the Crag",{"$nulls":5},"Account name on www.thecrag.com :"]
["Date","Venue and Route",null,"Type of Climbing"," Details of trip",{"$nulls":4},"MY ROLE  - enter amount of days",{"$nulls":3},"Client Description","Organisation/Business","Vertify","Notes"]
["dd/mm/year","location of crag","Route","MP/ SP/ TR                                   Trad/ Sport/ Bouldering","Weather","Lead, Second or Top Rope","Metres climbed","Grades","Number in Party","Personal recreation","Part of my own Education or training","Leading/ Guiding groups","Teaching/ Instructing leaders","ability                                 age range                         how many                        (if applicable) ","Who I conducting activity for                                                 (if applicable)","Who can verify authenticity of this entry                                               title/ name/ email/ phone                                           (if applicable)    ","Additional comments regarding this activity\nNote any non-routine, complex, problem solving, or incident managment tasks performed"]
["Totals>",{"$nulls":5},{"$f":"SUM(G7:G74)","v":0},null,{"$f":"SUM(I7:I115)","v":0},{"$f":"SUM(J7:J139)","v":0},{"$f":"SUM(K7:K139)","v":0},{"$f":"SUM(L7:L139)","v":0},{"$f":"SUM(M7:M139)","v":0}]

{"sheet":"WhiteWater","index":12,"n_rows":6,"n_cols":13,"rows_kept":6,"merged":[[0,0,0,12],[1,1,1,3],[1,5,1,10],[2,1,2,3],[2,5,2,12],[3,5,3,8]]}
["WHITEWATER ACTIVITY"]
["Qualification","Most applicable qualification/ Unit I hold for this activity:",{"$nulls":9},"Date obtained:"]
["Experience","The most applicable experience I have in this activity:",{"$nulls":3},"See table below"]
["Date","Venue","Type of Activity","Conditions encountered",null,"MY ROLE  - enter amount of days",{"$nulls":3},"Client Description","Organisation/Business","Vertify","Notes"]
["dd/mm/year","River               take in and take out points","Raft/ Sports Raft/ Canoe/ Kayak/ Rescue","Rapid Grade        River Level           Weather ","Number in Party","Personal recreation","Part of my own Education or training","Leading/ Guiding groups","Teaching/ Instructing leaders","ability                                 age range                         how many                        (if applicable) ","Who I conducting activity for                                                 (if applicable)","Who can verify authenticity of this entry                                               title/ name/ email/ phone                                           (if applicable)    ","Additional comments regarding this activity\nNote any non-routine, complex, problem solving, or incident managment tasks performed"]
["Totals>",{"$nulls":4},{"$f":"SUM(F7:F158)","v":0},{"$f":"SUM(G7:G158)","v":0},{"$f":"SUM(H7:H158)","v":0},{"$f":"SUM(I7:I158)","v":0}]

{"sheet":"Seakayak","index":13,"n_rows":6,"n_cols":16,"rows_kept":6,"merged":[[0,0,0,15],[1,1,1,3],[1,8,1,13],[2,1,2,3],[2,8,2,15],[3,5,3,7],[3,8,3,11]]}
["SEAKAYAKING"]
["Qualification","Most applicable qualification/ Unit I hold for this activity:",{"$nulls":12},"Date obtained:"]
["Experience","The most applicable experience I have in this activity:",{"$nulls":6},"See table below"]
["Date","Venue","Type of Activity","Conditions encountered",null,"Trip Deatails",null,null,"MY ROLE  - enter amount of days",{"$nulls":3},"Client Description","Organisation/Business","Vertify","Notes"]
["dd/mm/year","Body of water               take in- take out points","Single/ tandem,       SOT,              day/ overnight","Wave,    \nSwell, Fetch\nTemperature","Trip Type","Km Paddles","Number in Party","Grade","Personal recreation","Part of my own Education or training","Leading/ Guiding groups","Teaching/ Instructing leaders","ability                                 age range                         how many                        (if applicable) ","Who I conducting activity for   (if applicable)","Who can verify authenticity of this entry                                               title/ name/ email/ phone                                           (if applicable)    ","Additional comments regarding this activity\nNote any non-routine, complex, problem solving, or incident managment tasks performed"]
["Totals>",{"$nulls":4},{"$f":"SUM(F7:F75)","v":0},{"$f":"SUM(G7:G40)","v":0},null,{"$f":"SUM(I7:I54)","v":0},{"$f":"SUM(J7:J50)","v":0},{"$f":"SUM(K7:K54)","v":0},{"$f":"SUM(L7:L54)","v":0}]

{"sheet":"Aquatics","index":14,"n_rows":6,"n_cols":13,"rows_kept":6,"merged":[[0,0,0,12],[1,1,1,3],[1,5,1,10],[2,1,2,3],[2,5,2,12],[3,5,3,8]]}
["AQUATICS"]
["Qualification","Most applicable qualification/ Unit I hold for this activity:",{"$nulls":9},"Date obtained:"]
["Experience","The most applicable experience I have in this activity:",{"$nulls":3},"See table below"]
["Date","Venue","Type of Activity","Conditions encountered",null,"MY ROLE  - enter amount of days",{"$nulls":3},"Client Description","Organisation/Business","Vertify","Notes"]
["dd/mm/year","Body of Water ","Swimming, Surfing Lilo Lo, Snorkling, Scuba"," Weather , Seas","Number in Party","Personal recreation","Part of my own Education or training","Leading/ Guiding groups","Teaching/ Instructing leaders","ability                                 age range                         how many                        (if applicable) ","Who I conducting activity for                                                 (if applicable)","Who can verify authenticity of this entry                                               title/ name/ email/ phone                                           (if applicable)    ","Additional comments regarding this activity\nNote any non-routine, complex, problem solving, or incident managment tasks performed"]
["Totals>",{"$nulls":4},{"$f":"SUM(F7:F147)","v":0},{"$f":"SUM(G7:G147)","v":0},{"$f":"SUM(H7:H147)","v":0},{"$f":"SUM(I7:I147)","v":0}]

{"sheet":"Challenge Ropes","index":15,"n_rows":6,"n_cols":12,"rows_kept":6,"merged":[[0,0,0,11],[1,1,1,3],[1,4,1,9],[2,1,2,3],[2,4,2,9],[2,10,2,11],[3,4,3,7]]}
["CHALLENGE ROPES COURSE"]
["Qualification","Most applicable qualification/ Unit I hold for this activity:",{"$nulls":8},"Date obtained:"]
["Experience","The most applicable experience I have in this activity:",null,null,"See table below                                                                                              "]
["Date","Venue","Type of Activity","Program details","MY ROLE  - enter amount of days",{"$nulls":3},"Client Description","Organisation/Business","Vertify","Notes"]
["dd/mm/year","location of crag","High Ropes, Low Ropes,  Aerial Obstacles","purpose              lenght of session","Personal recreation","Part of my own Education or training","Leading/ Guiding groups","Teaching/ Instructing leaders","ability                                 age range                         how many                        (if applicable) ","Who I conducting activity for                                                 (if applicable)","Who can verify authenticity of this entry                                               title/ name/ email/ phone                                           (if applicable)    ","Additional comments regarding this activity\nNote any non-routine, complex, problem solving, or incident managment tasks performed"]
["Totals>",{"$nulls":3},{"$f":"SUM(E7:E40)","v":0},0,0,0]

{"sheet":"Adventure-based Learning","index":16,"n_rows":6,"n_cols":12,"rows_kept":6,"merged":[[0,0,0,11],[1,1,1,3],[1,5,1,9],[2,1,2,3],[2,5,2,9],[2,10,2,11],[3,5,3,7]]}
["FACILITATE ADVENTURE BASED LEARNING"]
["Qualification","Most applicable qualification/ Unit I hold for this activity:",{"$nulls":8},"Date obtained:"]
["Experience","The most applicable experience I have in this activity:",{"$nulls":3},"See table below                                                                                              "]
["Date","Venue","Learning Outcomes","Program details",null,"MY ROLE  - enter amount of days",null,null,"Client Description","Organisation/Business","Vertify","Notes"]
["dd/mm/year","Where\ncentre based or out in the field","what was the purpose","type of activity, duration, etc","Number of Participants","Part of my own Education or training","Leading/ Guiding groups","Teaching/ Instructing leaders","ability                                 age range                         how many                        (if applicable) ","Who I conducting activity for                                                 (if applicable)","Who can verify authenticity of this entry                                               title/ name/ email/ phone                                           (if applicable)    ","Additional comments regarding this activity\nNote any non-routine, complex, problem solving, or incident managment tasks performed"]
["Totals>",{"$nulls":4},{"$f":"SUM(F7:F35)","v":0},{"$f":"SUM(G7:G35)","v":0},{"$f":"SUM(H7:H35)","v":0}]

{"sheet":"PD","index":17,"n_rows":4,"n_cols":13,"rows_kept":4,"merged":[[0,0,0,12],[1,0,1,2],[1,3,1,12],[2,0,2,5],[2,7,2,12]]}
["   Professional Development Log"]
["PD could include, but is not limited to:",null,null,"Participation in professional industry networks, communities of practice or mentoring activities; workshops, seminars and conferences. Reading of outdoor industry journals; participation in projects within the outdoors industry; induction programs; meaningful engagement with professional industry bodies, state and national peak bodies; formally reviewing and improving work practices; shadowing or working closely with other outdoor educators as mentors.  Empowering communities to become involved in environmental and outdoor issues"]
["Formal- Workshop, Conference, Seminar, relevant to my Professionl Development",{"$nulls":6},"Informal- personal activities relevant to my  Professional Development"]
["Date","Title of formal PD","PD Provider name","Contact details of provider","Location of PD","Duration (in hours)",null,"Date","Industry Networking","Reading relevant journals research","Reviewing and improving work practices","Community  Club  or  Commitee  Involvement","Other"]